fUST/lending_fUST_20241229
["ID","MTS","AMOUNT","RATE_DAILY","PERIOD"]
[347010017,1735465846487,-526.75,0.00011465,2]
[347010019,1735465846496,-6261.94,0.00011465,2]
[347010021,1735465846506,-506.57,0.00011465,2]
[347010023,1735465846518,-235.8970372,0.00011466,2]
[347010025,1735465846527,-500.0,0.00011466,2]
[347010027,1735465846537,-769.91,0.00011466,2]
[347010028,1735465846545,-500.0,0.00011466,2]
[347010029,1735465846555,-500.0,0.00011467,2]
[347010031,1735465846564,-500.0,0.00011468,2]
[347010033,1735465846574,-2154.08,0.00011469,2]
[347010035,1735465846584,-1713.93,0.00011472,2]
[347010037,1735465846593,-609.31,0.00011738,2]
[347010039,1735465846602,-500.0,0.00011739,2]
[347010041,1735465846612,-500.0,0.00011739,2]
[347010043,1735465846621,-665.78,0.00011739,2]
[347010046,1735465846630,-500.0,0.00011739,2]
[347010047,1735465846640,-526.75,0.00011739,2]
[347010049,1735465846649,-6261.94,0.00011739,2]
[347010051,1735465846658,-506.57,0.00011739,2]
[347010053,1735465846667,-500.0,0.0001174,2]
[347010055,1735465846676,-769.91,0.0001174,2]
[347010057,1735465846685,-500.0,0.00011741,2]
[347010059,1735465846695,-500.0,0.00011742,2]
[347010061,1735465846705,-2154.08,0.00011743,2]
[347010063,1735465846714,-1713.93,0.00011746,2]
[347010065,1735465846723,-609.31,0.00012012,2]
[347010067,1735465846734,-500.0,0.00012013,2]
[347010069,1735465846743,-319.21990732,0.00012013,2]
[347010071,1735465846752,-665.78,0.00012013,2]
[347010073,1735465846762,-628.81,0.00012013,2]
[347010075,1735465846771,-526.75,0.00012013,2]
[347010076,1735465846781,-6261.94,0.00012013,2]
[347010078,1735465846791,-506.57,0.00012013,2]
[347010080,1735465846800,-500.0,0.00012014,2]
[347010082,1735465846809,-769.91,0.00012014,2]
[347010084,1735465846818,-500.0,0.00012015,2]
[347010086,1735465846828,-1440.8,0.00012016,2]
[347010088,1735465846838,-500.0,0.00012016,2]
[347010090,1735465846848,-2154.08,0.00012017,2]
[347010092,1735465846857,-1713.93,0.0001202,2]
[347010094,1735465846867,-1210.82968705,0.0001209,2]
[347010096,1735465846876,-609.31,0.00012286,2]
[347010098,1735465846885,-500.0,0.00012287,2]
[347010108,1735465846964,-665.78,0.00012287,2]
[347010110,1735465846973,-526.75,0.00012287,2]
[347010112,1735465846982,-6261.94,0.00012287,2]
[347010114,1735465846992,-506.57,0.00012287,2]
[347010115,1735465847001,-284.61,0.00012288,2]
[347010116,1735465847010,-769.91,0.00012288,2]
[347010117,1735465847019,-500.0,0.00012289,2]
[347010118,1735465847028,-2154.08,0.00012291,2]
[347010119,1735465847037,-1713.93,0.00012294,2]
[347010120,1735465847046,-609.31,0.00012559,2]
[347010121,1735465847055,-500.0,0.00012561,2]
[347010122,1735465847065,-665.78,0.00012561,2]
[347010123,1735465847075,-526.75,0.00012561,2]
[347010124,1735465847085,-6261.94,0.00012561,2]
[347010125,1735465847094,-506.57,0.00012561,2]
[347010126,1735465847105,-769.91,0.00012562,2]
[347010127,1735465847115,-500.0,0.00012563,2]
[347010128,1735465847124,-2154.08,0.00012565,2]
[347010129,1735465847134,-1713.93,0.00012568,2]
[347010130,1735465847144,-609.31,0.00012833,2]
[347010131,1735465847154,-500.0,0.00012835,2]
[347010132,1735465847163,-665.78,0.00012835,2]
[347010133,1735465847173,-526.75,0.00012835,2]
[347010134,1735465847182,-6261.94,0.00012835,2]
[347010135,1735465847192,-506.57,0.00012835,2]
[347010136,1735465847201,-769.91,0.00012836,2]
[347010137,1735465847211,-500.0,0.00012837,2]
[347010138,1735465847220,-2154.08,0.00012839,2]
[347010139,1735465847229,-286.315,0.0001284,2]
[347010140,1735465847239,-1713.93,0.00012842,2]
[347010141,1735465847248,-1440.8,0.00012842,2]
[347010142,1735465847257,-169.27926821,0.000129,2]
[347010143,1735465847266,-169.27926817,0.000129,2]
[347010144,1735465847276,-163.0,0.00013,2]
[347010145,1735465847286,-505.98658752,0.00013085,2]
[347010146,1735465847296,-609.31,0.00013107,2]
[347010147,1735465847306,-296.96,0.00013109,2]
[347010149,1735465847316,-665.78,0.00013109,2]
[347010151,1735465847324,-526.75,0.00013109,2]
[347010153,1735465847335,-6261.94,0.00013109,2]
[347010155,1735465847345,-506.57,0.00013109,2]
[347010157,1735465847354,-769.91,0.0001311,2]
[347010159,1735465847364,-500.0,0.00013111,2]
[347010161,1735465847373,-2154.08,0.00013113,2]
[347010163,1735465847382,-1713.93,0.00013116,2]
[347010165,1735465847392,-609.31,0.00013381,2]
[347010167,1735465847402,-665.78,0.00013383,2]
[347010169,1735465847412,-526.75,0.00013383,2]
[347010171,1735465847421,-6261.94,0.00013383,2]
[347010173,1735465847431,-506.57,0.00013383,2]
[347010175,1735465847440,-769.91,0.00013384,2]
[347010177,1735465847449,-500.0,0.00013385,2]
[347010179,1735465847459,-2154.08,0.00013387,2]
[347010181,1735465847468,-1713.93,0.0001339,2]
[347010183,1735465847478,-609.31,0.00013655,2]
[347010185,1735465847487,-665.78,0.00013656,2]
[347010187,1735465847497,-526.75,0.00013656,2]
[347010189,1735465847508,-6261.94,0.00013656,2]
[347010191,1735465847520,-506.57,0.00013656,2]
[347010193,1735465847529,-769.91,0.00013658,2]
[347010195,1735465847539,-500.0,0.00013659,2]
[347010197,1735465847548,-2154.08,0.00013661,2]
[347010199,1735465847559,-1713.93,0.00013664,2]
[347010201,1735465847568,-169.27926817,0.00013829,2]
[347010203,1735465847578,-609.31,0.00013929,2]
[347010205,1735465847592,-665.78,0.0001393,2]
[347010207,1735465847602,-526.75,0.0001393,2]
[347010209,1735465847612,-6261.94,0.0001393,2]
[347010211,1735465847621,-506.57,0.0001393,2]
[347010213,1735465847631,-769.91,0.00013932,2]
[347010215,1735465847640,-500.0,0.00013933,2]
[347010217,1735465847650,-2154.08,0.00013935,2]
[347010219,1735465847659,-1713.93,0.00013938,2]
[347010221,1735465847669,-1440.8,0.00013938,2]
[347010223,1735465847678,-400.0,0.00013973,2]
[347010225,1735465847688,-609.31,0.00014203,2]
[347010227,1735465847697,-665.78,0.00014204,2]
[347010229,1735465847706,-526.75,0.00014204,2]
[347010231,1735465847716,-6261.94,0.00014204,2]
[347010233,1735465847725,-506.57,0.00014204,2]
[347010235,1735465847735,-769.91,0.00014206,2]
[347010237,1735465847748,-500.0,0.00014207,2]
[347010240,1735465847762,-2154.08,0.00014209,2]
[347010242,1735465847777,-1713.93,0.00014212,2]
[347010244,1735465847790,-609.31,0.00014477,2]
[347010245,1735465847801,-665.78,0.00014478,2]
[347010246,1735465847814,-526.75,0.00014478,2]
[347010247,1735465847826,-6261.94,0.00014478,2]
[347010248,1735465847842,-506.57,0.00014478,2]
[347010249,1735465847856,-769.91,0.0001448,2]
[347010250,1735465847868,-452.88,0.00014481,2]
[347010251,1735465847881,-2154.08,0.00014483,2]
[347010252,1735465847895,-1713.93,0.00014486,2]
[347010253,1735465847908,-10281.1185884,0.00014636,2]
[347010254,1735465847920,-609.31,0.00014751,2]
[347010256,1735465847932,-665.78,0.00014752,2]
[347010258,1735465847945,-526.75,0.00014752,2]
[347010260,1735465847959,-6261.94,0.00014752,2]
[347010263,1735465847971,-506.57,0.00014752,2]
[347010265,1735465847983,-769.91,0.00014754,2]
[347010267,1735465847993,-2154.08,0.00014756,2]
[347010269,1735465848003,-1713.93,0.0001476,2]
[347010272,1735465848016,-609.31,0.00015025,2]
[347010274,1735465848028,-665.78,0.00015026,2]
[347010276,1735465848041,-526.75,0.00015026,2]
[347010279,1735465848055,-6261.94,0.00015026,2]
[347010281,1735465848069,-506.57,0.00015026,2]
[347010284,1735465848084,-769.91,0.00015028,2]
[347010286,1735465848096,-2154.08,0.0001503,2]
[347010289,1735465848111,-1713.93,0.00015034,2]
[347010291,1735465848122,-1440.8,0.00015034,2]
[347010293,1735465848133,-609.31,0.00015299,2]
[347010295,1735465848144,-665.78,0.000153,2]
[347010298,1735465848157,-526.75,0.000153,2]
[347010300,1735465848171,-6261.94,0.000153,2]
[347010303,1735465848184,-506.57,0.000153,2]
[347010305,1735465848196,-769.91,0.00015302,2]
[347010307,1735465848207,-2154.08,0.00015304,2]
[347010309,1735465848218,-1713.93,0.00015308,2]
[347010311,1735465848232,-609.45,0.00015573,2]
[347010314,1735465848243,-665.95,0.00015574,2]
[347010316,1735465848254,-526.95796126,0.00015574,2]
[347010318,1735465848266,-6262.04495511,0.00015574,2]
[347010320,1735465848278,-506.80707747,0.00015574,2]
[347010322,1735465848289,-769.95589623,0.00015576,2]
[347010325,1735465848301,-2154.08427744,0.00015578,2]
[347010327,1735465848313,-1714.05874384,0.00015582,2]
[347010329,1735465848325,-505.98658752,0.00015628,2]
[347010331,1735465848337,-150.0,0.00016,2]
[347010334,1735465848348,-169.27926817,0.00016156,2]
[347010336,1735465848360,-534.0,0.00016232,2]
[347010338,1735465848371,-2119.0,0.00016232,2]
[347010340,1735465848382,-2333.725,0.00016232,2]
[347010342,1735465848395,-404.816,0.00016232,2]
[347010345,1735465848407,-1936.15870154,0.0001643,2]
[347010347,1735465848419,-1312.48004024,0.0001643,2]
[347010349,1735465848430,-151.0,0.000169,2]
[347010352,1735465848442,-160.4,0.00017019,2]
[347010354,1735465848452,-151.0,0.000179,2]
[347010356,1735465848464,-505.98658752,0.0001817,2]
[347010358,1735465848476,-174.19,0.00018297,2]
[347010360,1735465848487,-169.27926817,0.00018484,2]
[347010363,1735465848499,-151.0,0.000189,2]
[347010365,1735465848510,-164.984708,0.00019178,2]
[347010367,1735465848525,-394.0,0.00019232,2]
[347010369,1735465848536,-288.95,0.000198,2]
[347010372,1735465848547,-151.0,0.000199,2]
[347010374,1735465848559,-574.953,0.0001991,2]
[347010376,1735465848571,-208.12,0.00019967,2]
[347010378,1735465848584,-1440.8,0.00019999,2]
[347010380,1735465848595,-9921.48911,0.0002,2]
[347010383,1735465848607,-7923.03549997,0.0002,20]
[347010385,1735465848619,-153.0,0.00020004,2]
[347010387,1735465848630,-153.0,0.00020004,2]
[347010389,1735465848639,-153.0,0.00020004,2]
[347010391,1735465848649,-153.0,0.00020004,2]
[347010393,1735465848658,-153.0,0.00020004,2]
[347010395,1735465848668,-153.0,0.00020004,2]
[347010397,1735465848677,-153.0,0.00020004,2]
[347010398,1735465848687,-153.0,0.00020004,2]
[347010400,1735465848696,-157.96,0.00020004,2]
[347010402,1735465848706,-499.0,0.00020273,2]
[347010404,1735465848715,-159.12,0.00020311,2]
[347010406,1735465848724,-400.0,0.00020447,2]
[347010414,1735465848848,-181.402236,0.00020521,2]
[347010416,1735465848864,-169.0,0.00020664,2]
[347010418,1735465848874,-300.0,0.000207,9]
[347010420,1735465848884,-40261.67883831,0.00020712,2]
[347010421,1735465848895,-505.98658752,0.00020712,2]
[347010422,1735465848904,-181.402236,0.00020712,2]
[347010423,1735465848913,-215.2322628,0.00020748,2]
[347010424,1735465848923,-1440.8,0.00020756,2]
[347010426,1735465848932,-1440.8,0.00020756,2]
[347010428,1735465848941,-1440.8,0.00020756,2]
[347010430,1735465848950,-1440.8,0.00020756,2]
[347010432,1735465848960,-1441.03,0.00020756,2]
[347010434,1735465848969,-1325.67,0.000208,2]
[347010436,1735465848978,-1842.42,0.000208,2]
[347010438,1735465848988,-508.52,0.000208,2]
[347010440,1735465848997,-1327.83,0.000208,2]
[347010442,1735465849007,-8595.35950984,0.00020808,2]
[347010444,1735465849016,-169.27926817,0.00020812,2]
[347010445,1735465849026,-500.0,0.00020871,2]
[347010446,1735465849035,-500.0,0.00020871,2]
[347010447,1735465849045,-151.0,0.00020887,2]
[347010448,1735465849054,-151.0,0.00020887,2]
[347010449,1735465849063,-184.088814,0.00020887,2]
[347010450,1735465849072,-151.0,0.00020887,2]
[347010452,1735465849081,-154.500758,0.00020887,2]
[347010453,1735465849091,-151.0,0.00020899,2]
[347010454,1735465849100,-151.0,0.00020899,2]
[347010455,1735465849109,-151.0,0.00020899,2]
[347010456,1735465849119,-151.0,0.00020899,2]
[347010457,1735465849128,-151.0,0.00020899,2]
[347010458,1735465849138,-151.0,0.00020899,2]
[347010459,1735465849147,-151.0,0.00020899,2]
[347010460,1735465849157,-151.0,0.00020899,2]
[347010461,1735465849167,-151.0,0.00020899,2]
[347010462,1735465849176,-151.0,0.00020899,2]
[347010463,1735465849186,-151.0,0.00020899,2]
[347010464,1735465849195,-151.0,0.00020899,2]
[347010465,1735465849204,-151.0,0.00020899,2]
[347010466,1735465849213,-151.0,0.00020899,2]
[347010467,1735465849223,-159.527188,0.00020899,2]
[347010468,1735465849232,-151.0,0.00020901,2]
[347010469,1735465849241,-151.0,0.00020901,2]
[347010470,1735465849251,-151.0,0.00020901,2]
[347010471,1735465849260,-151.0,0.00020901,2]
[347010472,1735465849269,-151.0,0.00020901,2]
[347010473,1735465849278,-151.0,0.00020901,2]
[347010474,1735465849287,-151.0,0.00020901,2]
[347010475,1735465849297,-215.539944,0.00020901,2]
[347010476,1735465849306,-151.0,0.00020901,2]
[347010477,1735465849315,-151.0,0.00020901,2]
[347010478,1735465849324,-151.0,0.00020901,2]
[347010479,1735465849334,-151.0,0.00020901,2]
[347010480,1735465849344,-151.0,0.00020901,2]
[347010481,1735465849353,-151.0,0.00020901,2]
[347010482,1735465849362,-151.0,0.00020901,2]
[347010483,1735465849372,-151.0,0.00020901,2]
[347010484,1735465849381,-151.0,0.00020901,2]
[347010485,1735465849391,-271.241874,0.00020901,2]
[347010486,1735465849401,-151.0,0.00020901,2]
[347010487,1735465849411,-154.832485,0.00020901,2]
[347010488,1735465849421,-151.0,0.00020901,2]
[347010489,1735465849431,-151.0,0.00020901,2]
[347010490,1735465849440,-151.0,0.00020901,2]
[347010491,1735465849450,-151.0,0.00020901,2]
[347010492,1735465849461,-269.15418,0.00020901,2]
[347010493,1735465849470,-269.15418,0.00020901,2]
[347010494,1735465849480,-269.15418,0.00020901,2]
[347010495,1735465849489,-269.15418,0.00020901,2]
[347010496,1735465849498,-547.381706,0.00020901,2]
[347010497,1735465849507,-269.15418,0.00020901,2]
[347010498,1735465849518,-547.381706,0.00020901,2]
[347010499,1735465849528,-269.15418,0.00020901,2]
[347010500,1735465849538,-547.381706,0.00020901,2]
[347010501,1735465849547,-269.15418,0.00020901,2]
[347010502,1735465849556,-547.381706,0.00020901,2]
[347010503,1735465849566,-269.15418,0.00020901,2]
[347010504,1735465849575,-269.15418,0.00020901,2]
[347010505,1735465849584,-547.381706,0.00020901,2]
[347010506,1735465849593,-269.15418,0.00020901,2]
[347010507,1735465849604,-547.381706,0.00020901,2]
[347010508,1735465849614,-269.15418,0.00020901,2]
[347010509,1735465849623,-547.381706,0.00020901,2]
[347010510,1735465849633,-269.15418,0.00020901,2]
[347010511,1735465849643,-547.381706,0.00020901,2]
[347010512,1735465849652,-269.15418,0.00020901,2]
[347010513,1735465849662,-547.381706,0.00020901,2]
[347010514,1735465849672,-547.381706,0.00020901,2]
[347010515,1735465849681,-269.15418,0.00020901,2]
[347010516,1735465849690,-547.381706,0.00020901,2]
[347010517,1735465849700,-269.15418,0.00020901,2]
[347010518,1735465849709,-547.381706,0.00020901,2]
[347010519,1735465849719,-269.15418,0.00020901,2]
[347010520,1735465849729,-547.381706,0.00020901,2]
[347010521,1735465849739,-269.15418,0.00020901,2]
[347010522,1735465849750,-547.381706,0.00020901,2]
[347010523,1735465849762,-269.15418,0.00020901,2]
[347010524,1735465849772,-547.381706,0.00020901,2]
[347010525,1735465849782,-269.15418,0.00020901,2]
[347010526,1735465849793,-547.381706,0.00020901,2]
[347010527,1735465849803,-269.154182,0.00020901,2]
[347010528,1735465849814,-547.381706,0.00020901,2]
[347010529,1735465849825,-547.381706,0.00020901,2]
[347010530,1735465849835,-547.381706,0.00020901,2]
[347010531,1735465849845,-547.381712,0.00020901,2]
[347010532,1735465849854,-151.0,0.00020901,2]
[347010533,1735465849864,-151.0,0.00020901,2]
[347010534,1735465849875,-151.0,0.00020901,2]
[347010535,1735465849885,-151.0,0.00020901,2]
[347010536,1735465849896,-300.374066,0.00020901,2]
[347010537,1735465849905,-491.765793,0.00020901,2]
[347010538,1735465849915,-491.765793,0.00020901,2]
[347010539,1735465849925,-491.765793,0.00020901,2]
[347010540,1735465849935,-491.765793,0.00020901,2]
[347010541,1735465849946,-491.765793,0.00020901,2]
[347010542,1735465849956,-491.765793,0.00020901,2]
[347010543,1735465849966,-491.765793,0.00020901,2]
[347010544,1735465849975,-491.765793,0.00020901,2]
[347010545,1735465849985,-491.765793,0.00020901,2]
[347010546,1735465849994,-491.765793,0.00020901,2]
[347010547,1735465850005,-491.765793,0.00020901,2]
[347010548,1735465850014,-491.765793,0.00020901,2]
[347010549,1735465850024,-491.765793,0.00020901,2]
[347010550,1735465850034,-491.765793,0.00020901,2]
[347010551,1735465850045,-491.765793,0.00020901,2]
[347010552,1735465850055,-491.765793,0.00020901,2]
[347010553,1735465850064,-491.765793,0.00020901,2]
[347010554,1735465850073,-491.765793,0.00020901,2]
[347010555,1735465850082,-491.765793,0.00020901,2]
[347010556,1735465850092,-491.765794,0.00020901,2]
[347010557,1735465850101,-151.0,0.00020901,2]
[347010558,1735465850110,-151.0,0.00020901,2]
[347010559,1735465850119,-151.0,0.00020901,2]
[347010560,1735465850128,-151.0,0.00020901,2]
[347010561,1735465850137,-151.0,0.00020901,2]
[347010562,1735465850147,-151.0,0.00020901,2]
[347010563,1735465850156,-151.0,0.00020901,2]
[347010564,1735465850165,-188.892316,0.00020901,2]
[347010565,1735465850174,-181.402236,0.00020904,2]
[347010566,1735465850184,-5080.79877236,0.00020908,2]
[347010567,1735465850193,-34406.49862615,0.00020908,2]
[347010568,1735465850203,-159.935788,0.00020908,2]
[347010569,1735465850212,-151.0,0.00020908,2]
[347010570,1735465850221,-151.0,0.00020908,2]
[347010571,1735465850231,-183.907957,0.00020908,2]
[347010572,1735465850240,-183.907957,0.00020908,2]
[347010573,1735465850250,-183.907957,0.00020908,2]
[347010574,1735465850259,-183.907957,0.00020908,2]
[347010575,1735465850269,-183.907957,0.00020908,2]
[347010576,1735465850278,-183.907957,0.00020908,2]
[347010577,1735465850288,-183.907957,0.00020908,2]
[347010578,1735465850297,-183.907957,0.00020908,2]
[347010579,1735465850307,-183.907957,0.00020908,2]
[347010580,1735465850316,-183.907957,0.00020908,2]
[347010581,1735465850326,-183.907957,0.00020908,2]
[347010582,1735465850337,-183.907957,0.00020908,2]
[347010583,1735465850347,-183.907957,0.00020908,2]
[347010584,1735465850358,-183.907957,0.00020908,2]
[347010585,1735465850367,-183.907957,0.00020908,2]
[347010586,1735465850376,-183.907957,0.00020908,2]
[347010587,1735465850385,-183.907957,0.00020908,2]
[347010588,1735465850394,-183.907957,0.00020908,2]
[347010589,1735465850403,-183.907957,0.00020908,2]
[347010590,1735465850412,-183.907966,0.00020908,2]
[347010591,1735465850421,-151.0,0.00020908,2]
[347010592,1735465850430,-151.0,0.00020908,2]
[347010593,1735465850440,-151.0,0.00020908,2]
[347010594,1735465850449,-151.0,0.00020908,2]
[347010595,1735465850459,-151.0,0.00020908,2]
[347010596,1735465850468,-151.0,0.00020908,2]
[347010597,1735465850477,-187.532322,0.00020908,2]
[347010598,1735465850487,-440.976148,0.00020908,2]
[347010599,1735465850496,-440.976148,0.00020908,2]
[347010600,1735465850505,-440.976148,0.00020908,2]
[347010601,1735465850514,-440.976148,0.00020908,2]
[347010602,1735465850527,-440.976144,0.00020908,2]
[347010603,1735465850536,-166.922029,0.00020908,2]
[347010604,1735465850545,-151.0,0.00020908,2]
[347010605,1735465850554,-151.0,0.00020908,2]
[347010606,1735465850564,-155.164225,0.00020908,2]
[347010607,1735465850574,-184.01315,0.00020908,2]
[347010608,1735465850584,-184.01315,0.00020908,2]
[347010609,1735465850593,-184.01315,0.00020908,2]
[347010610,1735465850603,-184.01315,0.00020908,2]
[347010611,1735465850613,-184.01315,0.00020908,2]
[347010612,1735465850622,-184.01315,0.00020908,2]
[347010613,1735465850631,-184.01315,0.00020908,2]
[347010614,1735465850640,-184.01315,0.00020908,2]
[347010615,1735465850649,-184.01315,0.00020908,2]
[347010616,1735465850658,-184.01315,0.00020908,2]
[347010617,1735465850667,-184.01315,0.00020908,2]
[347010618,1735465850676,-184.01315,0.00020908,2]
[347010619,1735465850686,-184.01315,0.00020908,2]
[347010620,1735465850695,-184.01315,0.00020908,2]
[347010621,1735465850705,-184.01315,0.00020908,2]
[347010622,1735465850714,-184.01315,0.00020908,2]
[347010623,1735465850723,-184.01315,0.00020908,2]
[347010624,1735465850732,-184.01315,0.00020908,2]
[347010625,1735465850741,-184.01315,0.00020908,2]
[347010626,1735465850751,-184.013147,0.00020908,2]
[347010627,1735465850759,-151.0,0.00020908,2]
[347010628,1735465850769,-151.0,0.00020908,2]
[347010629,1735465850778,-151.0,0.00020908,2]
[347010630,1735465850787,-151.0,0.00020908,2]
[347010631,1735465850796,-151.0,0.00020908,2]
[347010632,1735465850805,-151.0,0.00020908,2]
[347010633,1735465850815,-151.0,0.00020908,2]
[347010634,1735465850824,-151.0,0.00020908,2]
[347010635,1735465850834,-255.887656,0.00020908,2]
[347010636,1735465850843,-151.0,0.00020908,2]
[347010637,1735465850852,-151.0,0.00020908,2]
[347010638,1735465850862,-195.499282,0.00020908,2]
[347010639,1735465850871,-155.774592,0.00020908,2]
[347010640,1735465850882,-155.774592,0.00020908,2]
[347010641,1735465850891,-155.774592,0.00020908,2]
[347010642,1735465850900,-155.774592,0.00020908,2]
[347010643,1735465850909,-155.774592,0.00020908,2]
[347010644,1735465850918,-155.774592,0.00020908,2]
[347010645,1735465850928,-155.774592,0.00020908,2]
[347010646,1735465850937,-155.774592,0.00020908,2]
[347010647,1735465850947,-155.774592,0.00020908,2]
[347010648,1735465851030,-155.774592,0.00020908,2]
[347010649,1735465851040,-155.774592,0.00020908,2]
[347010650,1735465851051,-155.774592,0.00020908,2]
[347010651,1735465851063,-155.774592,0.00020908,2]
[347010652,1735465851073,-155.774592,0.00020908,2]
[347010653,1735465851082,-155.774592,0.00020908,2]
[347010654,1735465851092,-155.774592,0.00020908,2]
[347010655,1735465851102,-155.774592,0.00020908,2]
[347010656,1735465851112,-155.774592,0.00020908,2]
[347010657,1735465851123,-155.774592,0.00020908,2]
[347010658,1735465851134,-155.774592,0.00020908,2]
[347010659,1735465851143,-1069.126247,0.00020908,2]
[347010660,1735465851154,-1069.126247,0.00020908,2]
[347010661,1735465851164,-1069.126247,0.00020908,2]
[347010662,1735465851174,-1069.126247,0.00020908,2]
[347010663,1735465851184,-1069.126247,0.00020908,2]
[347010664,1735465851195,-1069.126247,0.00020908,2]
[347010665,1735465851204,-1069.126247,0.00020908,2]
[347010666,1735465851213,-1069.126247,0.00020908,2]
[347010667,1735465851224,-1069.126247,0.00020908,2]
[347010668,1735465851233,-1069.126247,0.00020908,2]
[347010669,1735465851242,-1069.126247,0.00020908,2]
[347010670,1735465851252,-1069.126247,0.00020908,2]
[347010671,1735465851262,-1069.126247,0.00020908,2]
[347010672,1735465851271,-1069.126247,0.00020908,2]
[347010673,1735465851280,-1069.126247,0.00020908,2]
[347010674,1735465851290,-1069.126247,0.00020908,2]
[347010675,1735465851299,-1069.126247,0.00020908,2]
[347010676,1735465851308,-1069.126247,0.00020908,2]
[347010677,1735465851318,-1069.126247,0.00020908,2]
[347010678,1735465851327,-1069.12625454,0.00020908,2]
[347010679,1735465851336,-151.0,0.00020908,2]
[347010680,1735465851344,-151.0,0.00020908,2]
[347010681,1735465851353,-151.0,0.00020908,2]
[347010682,1735465851362,-151.0,0.00020908,2]
[347010683,1735465851371,-214.345088,0.00020908,2]
[347010684,1735465851381,-151.0,0.00020908,2]
[347010685,1735465851390,-151.0,0.00020908,2]
[347010686,1735465851399,-151.0,0.00020908,2]
[347010687,1735465851408,-151.0,0.00020908,2]
[347010688,1735465851418,-151.0,0.00020908,2]
[347010689,1735465851428,-151.0,0.00020908,2]
[347010690,1735465851437,-167.385869,0.00020908,2]
[347010691,1735465851447,-167.385869,0.00020908,2]
[347010692,1735465851456,-167.385869,0.00020908,2]
[347010693,1735465851465,-167.385869,0.00020908,2]
[347010694,1735465851475,-167.385869,0.00020908,2]
[347010695,1735465851484,-167.385869,0.00020908,2]
[347010696,1735465851493,-167.385869,0.00020908,2]
[347010697,1735465851503,-167.385869,0.00020908,2]
[347010698,1735465851512,-167.385869,0.00020908,2]
[347010699,1735465851525,-167.385869,0.00020908,2]
[347010700,1735465851535,-167.385869,0.00020908,2]
[347010701,1735465851544,-167.385869,0.00020908,2]
[347010702,1735465851553,-167.385869,0.00020908,2]
[347010703,1735465851563,-167.385869,0.00020908,2]
[347010704,1735465851572,-167.385869,0.00020908,2]
[347010705,1735465851581,-167.385869,0.00020908,2]
[347010706,1735465851589,-167.385869,0.00020908,2]
[347010707,1735465851598,-167.385869,0.00020908,2]
[347010708,1735465851606,-167.385869,0.00020908,2]
[347010709,1735465851615,-167.385872,0.00020908,2]
[347010710,1735465851623,-151.0,0.00020908,2]
[347010711,1735465851632,-151.0,0.00020908,2]
[347010712,1735465851641,-151.0,0.00020908,2]
[347010713,1735465851650,-151.0,0.00020908,2]
[347010714,1735465851659,-151.0,0.00020908,2]
[347010715,1735465851669,-151.0,0.00020908,2]
[347010716,1735465851678,-151.0,0.00020908,2]
[347010717,1735465851687,-151.0,0.00020908,2]
[347010718,1735465851696,-151.0,0.00020908,2]
[347010719,1735465851706,-151.0,0.00020908,2]
[347010720,1735465851715,-151.0,0.00020908,2]